fUSD/lending_fUSD_20251123
["ID","MTS","AMOUNT","RATE_DAILY","PERIOD"]
[394730832,1763919113849,-500.0,0.00039178,8]
[394730833,1763919113860,-500.0,0.00039178,8]
[394730834,1763919113871,-500.0,0.00039178,8]
[394730835,1763919113883,-508.74898318,0.00039178,8]
[394730836,1763919113896,-983.92,0.00039178,8]
[394730837,1763919113908,-500.0,0.00039178,8]
[394730838,1763919113920,-500.0,0.00039178,8]
[394730839,1763919113931,-500.0,0.00039178,8]
[394730840,1763919113946,-500.0,0.00039178,8]
[394730841,1763919113958,-739.34,0.00039178,8]
[394730842,1763919113971,-500.0,0.00039178,8]
[394730843,1763919113983,-500.0,0.00039178,8]
[394730844,1763919113995,-1078.2,0.00039178,8]
[394730845,1763919114008,-500.0,0.00039178,2]
[394730846,1763919114021,-792.73,0.00039178,8]
[394730847,1763919114033,-150.0,0.00039178,2]
[394730848,1763919114047,-534.68,0.00039178,8]
[394730849,1763919114059,-500.0,0.00039178,8]
[394730850,1763919114071,-500.0,0.00039178,8]
[394730851,1763919114085,-500.0,0.00039178,8]
[394730852,1763919114097,-500.0,0.00039178,8]
[394730853,1763919114110,-500.0,0.00039178,8]
[394730854,1763919114122,-192.68502935,0.00039178,8]
[394730855,1763919114134,-1688.14,0.00039178,8]
[394730856,1763919114146,-500.0,0.00039178,8]
[394730857,1763919114158,-500.0,0.00039178,8]
[394730858,1763919114169,-500.0,0.00039178,8]
[394730859,1763919114181,-3666.33060951,0.00039178,2]
[394730860,1763919114193,-500.0,0.00039178,8]
[394730861,1763919114204,-500.0,0.00039178,8]
[394730862,1763919114215,-500.0,0.00039178,8]
[394730863,1763919114227,-500.0,0.00039178,8]
[394730864,1763919114239,-500.0,0.00039178,8]
[394730865,1763919114251,-500.0,0.00039178,8]
[394730866,1763919114262,-500.0,0.00039178,8]
[394730867,1763919114274,-500.0,0.00039178,8]
[394730868,1763919114286,-500.0,0.00039178,8]
[394730869,1763919114298,-437.07667986,0.00039178,8]
[394730870,1763919114309,-825.7,0.00039178,8]
[394730871,1763919114321,-500.0,0.00039178,8]
[394730872,1763919114333,-500.0,0.00039178,8]
[394730873,1763919114345,-1034.36,0.00039178,8]
[394730874,1763919114356,-500.0,0.00039178,8]
[394730875,1763919114367,-500.0,0.00039178,8]
[394730876,1763919114378,-500.0,0.00039178,8]
[394730877,1763919114389,-500.0,0.00039178,8]
[394730878,1763919114400,-500.0,0.00039178,8]
[394730879,1763919114412,-500.0,0.00039178,8]
[394730880,1763919114423,-500.0,0.00039178,8]
[394730881,1763919114436,-500.0,0.00039178,8]
[394730882,1763919114447,-500.0,0.00039178,8]
[394730883,1763919114458,-500.0,0.00039178,8]
[394730884,1763919114469,-674.57,0.00039178,8]
[394730885,1763919114481,-500.0,0.00039178,8]
[394730886,1763919114491,-500.0,0.00039178,8]
[394730887,1763919114504,-500.0,0.00039178,8]
[394730888,1763919114514,-807.01,0.00039178,8]
[394730889,1763919114525,-500.0,0.00039178,8]
[394730890,1763919114537,-885.51,0.00039178,8]
[394730891,1763919114547,-500.0,0.00039178,8]
[394730892,1763919114560,-500.0,0.00039178,8]
[394730893,1763919114571,-848.13,0.00039178,8]
[394730894,1763919114583,-500.0,0.00039178,8]
[394730895,1763919114594,-500.0,0.00039178,8]
[394730896,1763919114605,-890.86,0.00039178,8]
[394730897,1763919114616,-500.0,0.00039178,8]
[394730898,1763919114628,-500.0,0.00039178,8]
[394730899,1763919114639,-1082.87,0.00039178,8]
[394730900,1763919114649,-500.0,0.00039178,8]
[394730901,1763919114660,-500.0,0.00039178,8]
[394730902,1763919114671,-500.0,0.00039178,8]
[394730903,1763919114682,-500.0,0.00039178,8]
[394730904,1763919114693,-500.0,0.00039178,8]
[394730905,1763919114703,-969.89,0.00039178,8]
[394730906,1763919114714,-459.42901285,0.00039178,8]
[394730907,1763919114725,-500.0,0.00039178,8]
[394730908,1763919114736,-502.1432693,0.00039178,8]
[394730909,1763919114747,-500.0,0.00039178,8]
[394730910,1763919114758,-500.0,0.00039178,8]
[394730911,1763919114769,-500.0,0.00039178,8]
[394730912,1763919114779,-523.52,0.00039178,8]
[394730913,1763919114790,-500.0,0.00039178,8]
[394730914,1763919114808,-500.0,0.00039178,8]
[394730915,1763919114826,-501.36314172,0.00039178,8]
[394730916,1763919114840,-500.0,0.00039178,8]
[394730917,1763919114855,-500.0,0.00039178,8]
[394730918,1763919114868,-500.0,0.00039178,8]
[394730919,1763919114884,-1353.11,0.00039178,8]
[394730920,1763919114896,-500.0,0.00039178,8]
[394730921,1763919114907,-500.0,0.00039178,8]
[394730922,1763919114919,-500.0,0.00039178,8]
[394730923,1763919114933,-500.0,0.00039178,8]
[394730924,1763919114946,-500.0,0.00039178,8]
[394730925,1763919114959,-500.0,0.00039178,8]
[394730926,1763919114971,-500.0,0.00039178,8]
[394730927,1763919114985,-500.0,0.00039178,8]
[394730928,1763919114999,-500.0,0.00039178,8]
[394730929,1763919115012,-500.0,0.00039178,8]
[394730930,1763919115026,-500.0,0.00039178,8]
[394730931,1763919115039,-500.0,0.00039178,8]
[394730932,1763919115051,-500.0,0.00039178,8]
[394730933,1763919115062,-500.0,0.00039178,8]
[394730934,1763919115073,-500.0,0.00039178,8]
[394730935,1763919115085,-500.0,0.00039178,8]
[394730936,1763919115096,-500.0,0.00039178,8]
[394730937,1763919115108,-500.0,0.00039178,8]
[394730938,1763919115119,-664.8,0.00039178,8]
[394730939,1763919115131,-500.0,0.00039178,8]
[394730940,1763919115142,-500.0,0.00039178,8]
[394730941,1763919115156,-1105.1,0.00039178,8]
[394730942,1763919115169,-694.85,0.00039178,8]
[394730943,1763919115182,-500.0,0.00039178,8]
[394730944,1763919115194,-923.44,0.00039178,8]
[394730945,1763919115205,-1728.86,0.00039178,8]
[394730946,1763919115217,-844.33,0.00039178,8]
[394730947,1763919115228,-500.0,0.00039178,8]
[394730948,1763919115240,-901.86,0.00039178,8]
[394730949,1763919115252,-500.0,0.00039178,8]
[394730950,1763919115263,-569.49,0.00039178,8]
[394730951,1763919115274,-500.0,0.00039178,8]
[394730952,1763919115294,-500.0,0.00039178,120]
[394730953,1763919115305,-500.0,0.00039178,8]
[394730954,1763919115316,-500.0,0.00039178,8]
[394730955,1763919115327,-500.0,0.00039178,8]
[394730956,1763919115339,-500.0,0.00039178,8]
[394730957,1763919115351,-879.28,0.00039178,8]
[394730958,1763919115363,-686.06,0.00039178,8]
[394730959,1763919115374,-266.41317814,0.00039178,8]
[394730960,1763919115385,-500.0,0.00039178,8]
[394730961,1763919115396,-500.0,0.00039178,8]
[394730962,1763919115407,-643.3,0.00039178,8]
[394730963,1763919115418,-500.0,0.00039178,8]
[394730964,1763919115430,-500.0,0.00039178,8]
[394730965,1763919115441,-500.0,0.00039178,8]
[394730966,1763919115452,-500.0,0.00039178,30]
[394730967,1763919115463,-500.0,0.00039178,30]
[394730968,1763919115475,-500.0,0.00039178,30]
[394730969,1763919115486,-578.26533557,0.00039178,30]
[394730970,1763919115497,-334.51130859,0.00039178,8]
[394730971,1763919115508,-500.0,0.00039178,8]
[394730972,1763919115519,-500.0,0.00039178,8]
[394730973,1763919115531,-500.0,0.00039178,8]
[394730974,1763919115544,-500.0,0.00039178,8]
[394730975,1763919115556,-500.0,0.00039178,8]
[394730976,1763919115568,-500.0,0.00039178,8]
[394730977,1763919115580,-500.0,0.00039178,8]
[394730978,1763919115591,-883.07,0.00039178,8]
[394730979,1763919115602,-500.0,0.00039178,8]
[394730980,1763919115614,-500.0,0.00039178,8]
[394730981,1763919115625,-150.0,0.00039178,2]
[394730982,1763919115636,-251.54059232,0.00039178,8]
[394730983,1763919115647,-500.0,0.00039178,8]
[394730984,1763919115659,-500.0,0.00039178,8]
[394730985,1763919115669,-853.13,0.00039178,8]
[394730986,1763919115687,-500.0,0.00039178,8]
[394730987,1763919115701,-500.0,0.00039178,8]
[394730988,1763919115715,-500.0,0.00039178,8]
[394730989,1763919115728,-500.0,0.00039178,8]
[394730990,1763919115740,-500.0,0.00039178,8]
[394730991,1763919115754,-854.09,0.00039178,8]
[394730992,1763919115768,-500.0,0.00039178,8]
[394730993,1763919115780,-980.42,0.00039178,8]
[394730994,1763919115793,-983.6,0.00039178,8]
[394730995,1763919115806,-500.0,0.00039178,8]
[394730996,1763919115818,-500.0,0.00039178,8]
[394730997,1763919115831,-500.0,0.00039178,8]
[394730998,1763919115844,-500.0,0.00039178,8]
[394730999,1763919115857,-500.0,0.00039178,8]
[394731000,1763919115867,-11472.23234336,0.00039178,2]
[394731001,1763919115879,-500.0,0.00039178,8]
[394731002,1763919115890,-500.0,0.00039178,8]
[394731003,1763919115902,-500.0,0.00039178,8]
[394731004,1763919115914,-500.0,0.00039178,8]
[394731005,1763919115925,-500.0,0.00039178,8]
[394731006,1763919115938,-178.47379651,0.00039178,8]
[394731007,1763919115949,-500.0,0.00039178,8]
[394731008,1763919115960,-500.0,0.00039178,8]
[394731009,1763919116524,-846.1,0.00039178,8]
[394731010,1763919116597,-738.8,0.00039178,8]
[394731011,1763919116607,-500.0,0.00039178,8]
[394731012,1763919116617,-500.0,0.00039178,8]
[394731013,1763919116626,-591.3,0.00039178,8]
[394731014,1763919116635,-500.0,0.00039178,8]
[394731015,1763919116645,-500.0,0.00039178,8]
[394731016,1763919116654,-500.0,0.00039178,8]
[394731017,1763919116664,-701.02,0.00039178,8]
[394731018,1763919116674,-623.41,0.00039178,8]
[394731019,1763919116683,-500.0,0.00039178,8]
[394731020,1763919116693,-500.0,0.00039178,8]
[394731021,1763919116702,-793.15,0.00039178,8]
[394731022,1763919116711,-959.16,0.00039178,8]
[394731023,1763919116719,-500.0,0.00039178,8]
[394731024,1763919116728,-500.0,0.00039178,8]
[394731025,1763919116740,-994.79,0.00039178,8]
[394731026,1763919116749,-198.27311305,0.00039178,8]
[394731027,1763919116759,-1378.13,0.00039178,8]
[394731028,1763919116768,-500.0,0.00039178,8]
[394731029,1763919116778,-500.0,0.00039178,8]
[394731030,1763919116787,-500.0,0.00039178,8]
[394731031,1763919116797,-500.0,0.00039178,8]
[394731032,1763919116807,-745.87,0.00039178,8]
[394731033,1763919116817,-500.0,0.00039178,8]
[394731034,1763919116826,-500.0,0.00039178,8]
[394731035,1763919116836,-500.0,0.00039178,8]
[394731036,1763919116846,-500.0,0.00039178,8]
[394731037,1763919116855,-500.0,0.00039178,8]
[394731038,1763919116864,-500.0,0.00039178,8]
[394731039,1763919116874,-500.0,0.00039178,8]
[394731040,1763919116883,-500.0,0.00039178,8]
[394731041,1763919116893,-500.0,0.00039178,8]
[394731042,1763919116902,-500.0,0.00039178,8]
[394731043,1763919116912,-500.0,0.00039178,8]
[394731044,1763919116921,-500.0,0.00039178,8]
[394731045,1763919116930,-500.0,0.00039178,8]
[394731046,1763919116939,-500.0,0.00039178,8]
[394731047,1763919116948,-651.68,0.00039178,8]
[394731048,1763919116957,-733.25,0.00039178,8]
[394731049,1763919116967,-500.0,0.00039178,8]
[394731050,1763919116976,-500.0,0.00039178,8]
[394731051,1763919116985,-500.0,0.00039178,8]
[394731052,1763919116996,-500.0,0.00039178,8]
[394731053,1763919117015,-500.0,0.00039178,8]
[394731054,1763919117025,-1330.04,0.00039178,8]
[394731055,1763919117035,-782.65,0.00039178,8]
[394731056,1763919117045,-915.71,0.00039178,8]
[394731057,1763919117054,-500.0,0.00039178,8]
[394731058,1763919117064,-621.91,0.00039178,8]
[394731059,1763919117073,-500.0,0.00039178,8]
[394731060,1763919117082,-500.0,0.00039178,8]
[394731061,1763919117091,-500.0,0.00039178,8]
[394731062,1763919117100,-500.0,0.00039178,8]
[394731063,1763919117109,-578.74,0.00039178,8]
[394731064,1763919117119,-1163.65,0.00039178,8]
[394731065,1763919117128,-500.0,0.00039178,8]
[394731066,1763919117138,-500.0,0.00039178,8]
[394731067,1763919117148,-500.0,0.00039178,8]
[394731068,1763919117157,-500.0,0.00039178,8]
[394731069,1763919117166,-977.42,0.00039178,2]
[394731070,1763919117175,-500.0,0.00039178,8]
[394731071,1763919117185,-500.0,0.00039178,8]
[394731072,1763919117194,-500.0,0.00039178,8]
[394731073,1763919117203,-1819.98,0.00039178,8]
[394731074,1763919117212,-700.0,0.00039178,120]
[394731075,1763919117221,-1467.74,0.00039178,8]
[394731076,1763919117231,-500.0,0.00039178,8]
[394731077,1763919117240,-1026.43,0.00039178,8]
[394731078,1763919117250,-500.0,0.00039178,8]
[394731079,1763919117259,-500.0,0.00039178,8]
[394731080,1763919117270,-500.0,0.00039178,8]
[394731081,1763919117279,-718.29,0.00039178,8]
[394731082,1763919117289,-500.0,0.00039178,8]
[394731083,1763919117300,-500.0,0.00039178,8]
[394731084,1763919117310,-500.0,0.00039178,8]
[394731085,1763919117324,-714.77,0.00039178,8]
[394731086,1763919117333,-500.0,0.00039178,8]
[394731087,1763919117343,-500.0,0.00039178,8]
[394731088,1763919117352,-761.4,0.00039178,8]
[394731089,1763919117362,-764.51,0.00039178,8]
[394731090,1763919117372,-1215.72,0.00039178,8]
[394731091,1763919117383,-500.0,0.00039178,8]
[394731092,1763919117392,-500.0,0.00039178,8]
[394731093,1763919117402,-500.0,0.00039178,8]
[394731094,1763919117413,-500.0,0.00039178,8]
[394731095,1763919117422,-500.0,0.00039178,8]
[394731096,1763919117431,-500.0,0.00039178,8]
[394731097,1763919117441,-711.91,0.00039178,8]
[394731098,1763919117450,-500.0,0.00039178,8]
[394731099,1763919117460,-500.0,0.00039178,8]
[394731100,1763919117470,-500.0,0.00039178,8]
[394731101,1763919117480,-500.0,0.00039178,8]
[394731102,1763919117489,-500.0,0.00039178,8]
[394731103,1763919117499,-704.27,0.00039178,8]
[394731104,1763919117509,-500.0,0.00039178,8]
[394731105,1763919117519,-500.0,0.00039178,8]
[394731106,1763919117528,-610.38,0.00039178,8]
[394731107,1763919117537,-444.05073929,0.00039178,8]
[394731108,1763919117548,-500.0,0.00039178,8]
[394731109,1763919117558,-500.0,0.00039178,8]
[394731110,1763919117568,-500.0,0.00039178,8]
[394731111,1763919117578,-653.5,0.00039178,8]
[394731112,1763919117588,-777.88,0.00039178,8]
[394731113,1763919117598,-500.0,0.00039178,8]
[394731114,1763919117608,-500.0,0.00039178,8]
[394731115,1763919117617,-1192.76,0.00039178,8]
[394731116,1763919117626,-500.0,0.00039178,8]
[394731117,1763919117636,-540.0,0.00039178,8]
[394731118,1763919117646,-504.21,0.00039178,8]
[394731119,1763919117655,-500.0,0.00039178,8]
[394731120,1763919117664,-803.43,0.00039178,8]
[394731121,1763919117675,-500.0,0.00039178,8]
[394731122,1763919117685,-688.32,0.00039178,8]
[394731123,1763919117694,-500.0,0.00039178,8]
[394731124,1763919117705,-500.0,0.00039178,8]
[394731125,1763919117714,-951.32,0.00039178,8]
[394731126,1763919117724,-914.16,0.00039178,8]
[394731127,1763919117735,-500.47,0.00039178,8]
[394731128,1763919117744,-500.0,0.00039178,8]
[394731129,1763919117756,-673.42,0.00039178,8]
[394731130,1763919117767,-582.89,0.00039178,8]
[394731131,1763919117776,-500.0,0.00039178,8]
[394731132,1763919117785,-500.0,0.00039178,8]
[394731133,1763919117798,-531.52,0.00039178,8]
[394731134,1763919117809,-530.48,0.00039178,8]
[394731135,1763919117818,-774.83,0.00039178,8]
[394731136,1763919117828,-500.0,0.00039178,8]
[394731137,1763919117838,-500.0,0.00039178,8]
[394731138,1763919117847,-500.0,0.00039178,8]
[394731139,1763919117857,-500.0,0.00039178,8]
[394731140,1763919117866,-500.0,0.00039178,8]
[394731141,1763919117876,-318.27137892,0.00039178,8]
[394731142,1763919117886,-500.0,0.00039178,8]
[394731143,1763919117896,-500.0,0.00039178,8]
[394731144,1763919117905,-500.0,0.00039178,8]
[394731145,1763919117915,-500.0,0.00039178,8]
[394731146,1763919117924,-500.0,0.00039178,8]
[394731147,1763919117935,-287.77152703,0.00039178,8]
[394731148,1763919117945,-645.44,0.00039178,8]
[394731149,1763919117955,-770.58,0.00039178,8]
[394731150,1763919117964,-500.0,0.00039178,8]
[394731151,1763919117974,-500.0,0.00039178,8]
[394731152,1763919117984,-824.01,0.00039178,8]
[394731153,1763919117993,-745.01,0.00039178,8]
[394731154,1763919118008,-500.0,0.00039178,8]
[394731155,1763919118017,-1103.15,0.00039178,8]
[394731156,1763919118027,-500.0,0.00039178,8]
[394731157,1763919118037,-500.0,0.00039178,8]
[394731158,1763919118047,-500.0,0.00039178,8]
[394731159,1763919118057,-500.0,0.00039178,8]
[394731160,1763919118067,-888.77,0.00039178,8]
[394731161,1763919118078,-500.0,0.00039178,8]
[394731162,1763919118092,-500.0,0.00039178,8]
[394731163,1763919118101,-781.87,0.00039178,8]
[394731164,1763919118113,-500.0,0.00039178,8]
[394731165,1763919118122,-552.9,0.00039178,8]
[394731166,1763919118133,-500.0,0.00039178,8]
[394731167,1763919118143,-500.0,0.00039178,8]
[394731168,1763919118152,-500.0,0.00039178,8]
[394731169,1763919118162,-500.0,0.00039178,8]
[394731170,1763919118171,-500.0,0.00039178,8]
[394731171,1763919118181,-500.0,0.00039178,8]
[394731172,1763919118190,-500.0,0.00039178,8]
[394731173,1763919118200,-700.87,0.00039178,8]
[394731174,1763919118210,-932.34,0.00039178,8]
[394731175,1763919118220,-500.0,0.00039178,8]
[394731176,1763919118230,-500.0,0.00039178,8]
[394731177,1763919118240,-500.0,0.00039178,8]
[394731178,1763919118249,-500.0,0.00039178,8]
[394731179,1763919118260,-500.0,0.00039178,8]
[394731180,1763919118270,-571.32,0.00039178,8]
[394731181,1763919118280,-823.48,0.00039178,8]
[394731182,1763919118289,-500.0,0.00039178,8]
[394731183,1763919118299,-500.0,0.00039178,8]
[394731184,1763919118309,-500.0,0.00039178,8]
[394731185,1763919118318,-500.0,0.00039178,8]
[394731186,1763919118329,-845.14,0.00039178,8]
[394731187,1763919118340,-536.71,0.00039178,8]
[394731188,1763919118349,-569.32,0.00039178,8]
[394731189,1763919118359,-500.0,0.00039178,8]
[394731190,1763919118368,-500.0,0.00039178,8]
[394731191,1763919118378,-500.0,0.00039178,8]
[394731192,1763919118388,-599.19,0.00039178,8]
[394731193,1763919118397,-500.0,0.00039178,8]
[394731194,1763919118407,-794.34,0.00039178,8]
[394731195,1763919118417,-500.0,0.00039178,8]
[394731196,1763919118426,-500.0,0.00039178,8]
[394731197,1763919118436,-500.0,0.00039178,8]
[394731198,1763919118445,-500.0,0.00039178,8]
[394731199,1763919118455,-500.0,0.00039178,8]
[394731200,1763919118464,-748.39,0.00039178,8]
[394731201,1763919118473,-500.0,0.00039178,8]
[394731202,1763919118483,-500.0,0.00039178,8]
[394731203,1763919118492,-500.0,0.00039178,8]
[394731204,1763919118502,-500.0,0.00039178,8]
[394731205,1763919118512,-736.62,0.00039178,8]
[394731206,1763919118521,-500.0,0.00039178,8]
[394731207,1763919118530,-500.0,0.00039178,8]
[394731208,1763919118540,-500.0,0.00039178,8]
[394731209,1763919118549,-500.0,0.00039178,8]
[394731210,1763919118559,-500.0,0.00039178,8]
[394731211,1763919118569,-500.0,0.00039178,8]
[394731212,1763919118579,-500.0,0.00039178,8]
[394731213,1763919118589,-500.0,0.00039178,8]
[394731214,1763919118598,-500.0,0.00039178,8]
[394731215,1763919118608,-500.0,0.00039178,8]
[394731216,1763919118618,-500.0,0.00039178,8]
[394731217,1763919118628,-500.0,0.00039178,8]
[394731218,1763919118638,-812.26,0.00039178,8]
[394731219,1763919118649,-500.0,0.00039178,8]
[394731220,1763919118658,-1298.41,0.00039178,8]
[394731221,1763919118668,-500.0,0.00039178,8]
[394731222,1763919118678,-500.0,0.00039178,8]
[394731223,1763919118690,-500.0,0.00039178,8]
[394731224,1763919118700,-500.0,0.00039178,8]
[394731225,1763919118710,-500.0,0.00039178,8]
[394731226,1763919118720,-500.0,0.00039178,8]
[394731227,1763919118730,-560.74,0.00039178,8]
[394731228,1763919118740,-501.55630026,0.00039178,8]
[394731229,1763919118751,-500.0,0.00039178,8]
[394731230,1763919118761,-1042.12,0.00039178,8]
[394731231,1763919118771,-694.37,0.00039178,8]
[394731232,1763919118781,-500.0,0.00039178,8]
[394731233,1763919118790,-500.0,0.00039178,8]
[394731234,1763919118800,-500.0,0.00039178,8]
[394731235,1763919118809,-500.0,0.00039178,8]
[394731236,1763919118818,-500.0,0.00039178,8]
[394731237,1763919118828,-500.0,0.00039178,8]
[394731238,1763919118838,-708.7,0.00039178,8]
[394731239,1763919118848,-636.31,0.00039178,8]
[394731240,1763919118857,-500.0,0.00039178,8]
[394731241,1763919118867,-500.0,0.00039178,8]
[394731242,1763919118876,-500.0,0.00039178,8]
[394731243,1763919118887,-234.76721892,0.00039178,7]
[394731244,1763919118896,-500.0,0.00039178,8]
[394731245,1763919118906,-893.23,0.00039178,8]
[394731246,1763919118915,-500.0,0.00039178,8]
[394731247,1763919118925,-500.0,0.00039178,8]
[394731248,1763919118935,-500.0,0.00039178,8]
[394731249,1763919118944,-636.78,0.00039178,8]
[394731250,1763919118954,-915.3,0.00039178,8]
[394731251,1763919118963,-300.0,0.00039178,2]
[394731252,1763919118972,-500.0,0.00039178,8]
[394731253,1763919118982,-500.0,0.00039178,8]
[394731254,1763919118991,-500.0,0.00039178,8]
[394731255,1763919119004,-500.0,0.00039178,8]
[394731256,1763919119014,-590.82,0.00039178,8]
[394731257,1763919119024,-506.90353742,0.00039178,8]
[394731258,1763919119033,-500.0,0.00039178,8]
[394731259,1763919119049,-500.0,0.00039178,8]
[394731260,1763919119059,-610.8,0.00039178,8]
[394731261,1763919119068,-500.0,0.00039178,8]
[394731262,1763919119078,-500.0,0.00039178,8]
[394731263,1763919119093,-500.0,0.00039178,8]
[394731264,1763919119108,-500.0,0.00039178,8]
[394731265,1763919119117,-500.0,0.00039178,8]
[394731266,1763919119127,-1020.19,0.00039178,8]
[394731267,1763919119136,-500.0,0.00039178,8]
[394731268,1763919119146,-477.40380468,0.00039178,8]
[394731269,1763919119155,-500.0,0.00039178,8]
[394731270,1763919119164,-500.0,0.00039178,8]
[394731271,1763919119173,-500.0,0.00039178,8]
[394731272,1763919119183,-500.0,0.00039178,8]
[394731273,1763919119192,-852.21,0.00039178,8]
[394731274,1763919119202,-658.87,0.00039178,8]
[394731275,1763919119441,-525.23,0.00039178,8]
[394731276,1763919119451,-500.0,0.00039178,8]
[394731277,1763919119460,-500.0,0.00039178,8]
[394731278,1763919119470,-500.0,0.00039178,8]
[394731279,1763919119479,-500.0,0.00039178,8]
[394731280,1763919119488,-258.77425252,0.00039178,8]
[394731281,1763919119497,-500.0,0.00039178,8]
[394731282,1763919119506,-673.98,0.00039178,8]
[394731283,1763919119515,-500.0,0.00039178,8]
[394731284,1763919119524,-500.0,0.00039178,8]
[394731285,1763919119534,-367.05772142,0.00039178,8]
[394731286,1763919119543,-581.1,0.00039178,8]
[394731287,1763919119552,-500.0,0.00039178,8]
[394731288,1763919119561,-500.0,0.00039178,8]
[394731289,1763919119571,-500.0,0.00039178,8]
[394731290,1763919119580,-639.82,0.00039178,8]
[394731291,1763919119590,-500.0,0.00039178,8]
[394731292,1763919119599,-508.12,0.00039178,8]
[394731293,1763919119609,-500.0,0.00039178,8]
[394731294,1763919119618,-620.13793384,0.00039178,8]
[394731295,1763919119628,-965.62,0.00039178,8]
[394731296,1763919119637,-500.0,0.00039178,8]
[394731297,1763919119646,-500.0,0.00039178,8]
[394731298,1763919119655,-500.0,0.00039178,8]
[394731299,1763919119664,-507.8,0.00039178,8]
[394731300,1763919119673,-542.89,0.00039178,8]
[394731301,1763919119683,-500.0,0.00039178,8]
[394731302,1763919119692,-500.0,0.00039178,8]
[394731303,1763919119702,-500.0,0.00039178,8]
[394731304,1763919119713,-500.0,0.00039178,8]
[394731305,1763919119723,-533.71975597,0.00039178,8]
[394731306,1763919119733,-500.0,0.00039178,8]
[394731307,1763919119743,-500.0,0.00039178,8]
[394731308,1763919119754,-1013.72,0.00039178,8]
[394731309,1763919119763,-500.0,0.00039178,7]
[394731310,1763919119773,-1787.13,0.00039178,8]
[394731311,1763919119782,-500.0,0.00039178,8]
[394731312,1763919119792,-837.27,0.00039178,8]
[394731313,1763919119801,-500.0,0.00039178,8]
[394731314,1763919119811,-500.0,0.00039178,8]
[394731315,1763919119821,-500.0,0.00039178,8]
[394731316,1763919119831,-500.0,0.00039178,8]
[394731317,1763919119842,-500.0,0.00039178,8]
[394731318,1763919119851,-500.0,0.00039178,8]
[394731319,1763919119860,-500.0,0.00039178,8]
[394731320,1763919119870,-930.05,0.00039178,8]
[394731321,1763919119880,-500.0,0.00039178,8]
[394731322,1763919119890,-500.0,0.00039178,8]
[394731323,1763919119899,-500.0,0.00039178,8]
[394731324,1763919119911,-500.0,0.00039178,8]
[394731325,1763919119920,-523.44,0.00039178,8]
[394731326,1763919119931,-500.0,0.00039178,8]
[394731327,1763919119941,-500.0,0.00039178,8]
[394731328,1763919119952,-500.27,0.00039178,8]
[394731329,1763919119961,-500.0,0.00039178,8]
[394731330,1763919119971,-500.0,0.00039178,8]
[394731331,1763919119981,-500.0,0.00039178,8]